[Event "Czech Championship 2022"]
[Site "Usti nad Labem"]
[Date "2022.05.14"]
[Round "1.20"]
[White "Jirasko, Miroslav"]
[Black "Sorm, Daniel"]
[Result "1/2-1/2"]
[ECO "B31"]
[WhiteElo "2091"]
[BlackElo "2306"]
[Annotator "TA"]
[PlyCount "126"]
[EventDate "2022.05.12"]
[EventType "swiss"]
[EventCountry "CZE"]
[SourceTitle "playchess.com"]
[Source "ChessBase"]
[SourceQuality "1"]
[TimeControl "40/5400+30:1800+30"]

{[%evp 16,126,28,10,15,4,28,20,35,39,52,51,52,51,59,22,27,24,24,26,30,26,32,20,22,23,25,19,26,22,47,8,7,0,0,0,47,28,49,26,24,36,38,0,0,-611,93,90,87,95,88,72,211,216,343,360,336,363,348,341,349,340,318,331,291,289,460,177,157,139,208,66,66,66,62,62,136,145,139,131,108,73,78,75,244,0,0,0,0,0,0,0,0,0,0,0,0,0,0,0,0,0,0,0,0,0,0,0,0,0,0,0,0]} 1. e4 {[%emt 0:00:02]} c5 {[%emt 0:00:07]} 2. Nf3 {[%emt 0:00:04]} Nc6 {[%emt 0:00:18]} 3. Bb5 {[%emt 0:00:04]} g6 {[%emt 0:01:39]} 4. Bxc6 {[%emt 0:00:52]} dxc6 {[%emt 0:00:22]} 5. d3 {[%emt 0:00:07]} Bg7 {[%emt 0:00:41]} 6. O-O {[%emt 0:00:18]} Nf6 {[%emt 0:04:32][%cal Bg8f6,Bf6e8,Be8c7,Bc7e6][%mdl 32]} 7. h3 {[%emt 0:00:12]} O-O {[%emt 0:00:34]} 8. Nc3 {[%emt 0:01:06]} Ne8 {[%emt 0:01:14]} 9. Be3 {[%emt 0:11:38]} b6 {[%emt 0:00:15] B31: Sicilian: 2...Nc6 3 Bb5 g6.} 10. Qc1 {[%emt 0:09:13]} Nc7 {[%emt 0:03:11]} 11. Bh6 {[%emt 0:02:11]} Ne6 {[%emt 0:00:15]} 12. Ne2 {[%emt 0:01:07]} Ba6 {[%emt 0:01:53]} 13. Bxg7 {[%emt 0:00:07]} Kxg7 {[%emt 0:00:06] [#]} 14. b3 $146 {[%emt 0:00:04] Against c4} (14. Ne5 f6 15. Ng4 (15. Nxc6 $2 Qd6 $19) 15... c4 $11) ({Predecessor:} 14. Qe3 Qc7 15. Rfd1 Rfd8 16. Rd2 Rd7 17. Rad1 Rad8 18. c3 Nf8 19. Nh2 e5 20. Ng4 {1-0 (54) Radlovacki,J (2371)-Terbe,Z (2160) Budapest 2015}) 14... f6 {[%emt 0:07:36]} 15. Nh2 {[%emt 0:06:24]} Nd4 {[%emt 0:06:55]} 16. Nxd4 {[%emt 0:01:06]} cxd4 {[%emt 0:00:08]} 17. Ng4 {[%emt 0:04:00]} Bc8 {[%emt 0:00:58]} 18. Qh6+ {[%emt 0:01:04]} Kg8 {[%emt 0:00:33]} 19. Nh2 {[%emt 0:05:50]} Rf7 {[%emt 0:06:48]} 20. f4 {[%emt 0:03:37]} c5 {[%emt 0:06:50]} 21. Rae1 {[%emt 0:09:55]} Be6 {[%emt 0:04:51]} 22. Re2 {[%emt 0:10:03]} Qd7 {[%emt 0:01:03]} 23. Rfe1 {[%emt 0:08:44]} Rg7 {[%emt 0:01:48]} 24. e5 {[%emt 0:02:35]} f5 {[%emt 0:00:26]} 25. Nf3 {[%emt 0:00:09]} b5 {[%emt 0:02:05]} (25... Bd5 $11) 26. Ng5 $14 {[%emt 0:01:27]} Rc8 {[%emt 0:03:10]} 27. h4 {[%emt 0:02:33] And now h5 would win.} Rc6 {[%emt 0:02:06]} 28. h5 {[%emt 0:05:42] Black must now prevent hxg6.} Qe8 {[%emt 0:08:33][%cal Og6h5]} 29. g4 {[%emt 0:04:13]} gxh5 {[%emt 0:36:03]} (29... fxg4 $2 30. Nxe6 Rxe6 31. f5 $18) 30. gxh5 $2 {[%emt 0:11:03][%mdl 8192]} (30. Nxe6 $2 Rg6 31. Qf8+ (31. Ng7 $2 Rxg7 32. Qxg7+ Kxg7 $19) 31... Qxf8 32. Nxf8 Rxg4+ 33. Kh1 Kxf8 $19) (30. Rh2 $11) 30... Bf7 $2 {[%emt 0:00:00]} (30... Qb8 $19 31. Rf2 c4 32. bxc4 bxc4 33. dxc4 Qc8) 31. e6 $40 {[%emt 0:00:00][%mdl 128] White attacks with force.} Bxh5 {[%emt 0:00:00]} 32. Rh2 {[%emt 0:00:00]} Bg6 {[%emt 0:00:00]} 33. Ree2 $1 {[%emt 0:00:00] 0x0.0024f7dd4ec8dp-1022s more active pieces.} c4 {[%emt 0:00:00]} (33... Qf8 $16 {might work better.}) 34. Reg2 $1 $18 {[%emt 0:00:00]} cxd3 {[%emt 0:00:00]} (34... Qc8 {was worth a try.} 35. Kf1 (35. Nxh7 Qxe6 36. Rh3 Qd5 $18) 35... Rxe6) 35. Nxh7 $1 {[%emt 0:00:00][%cal Oh7f6] White wants to mate with Nf6+!} Rxe6 {[%emt 0:00:00] [#]} 36. Ng5 $1 {[%emt 0:00:00][%csl Gh2][%cal Rh6h8]} ({Avoid the trap} 36. cxd3 $2 Qc6 37. Rh4 Re1+ 38. Kh2 {[#]} Qc1 $1 $19) 36... Re1+ {[%emt 0:00:00]} 37. Kf2 {[%emt 0:00:00][%csl Gh2][%cal Rh6h8]} Re2+ {[%emt 0:00:00]} 38. Kf1 {[%emt 0:00:00][%csl Gh2][%cal Rh6h8] Chess con chili.} Bh7 {[%emt 0:00:00] aiming for ...dxc2.} 39. Rxe2 {[%emt 0:00:21]} dxe2+ {[%emt 0:00:00]} 40. Rxe2 {[%emt 0:00:20] Qe6+ is the strong threat.} ({Not} 40. Kxe2 Qg6 41. Qxg6 Bxg6 $16) 40... Qc8 {[%emt 0:00:00]} (40... d3 $142 41. cxd3 Qc8 42. Qe6+ Qxe6 43. Rxe6 b4) 41. Qe6+ $2 {[%emt 0:33:52]} (41. Rh2 d3 42. Ne6 (42. cxd3 Qc1+ 43. Ke2 Qc2+ 44. Ke3 Qc1+ 45. Kf3 Qf1+ 46. Ke3 Qc1+ 47. Kf3 Qf1+ 48. Ke3 Qc1+ $11)) 41... Qxe6 {[%emt 0:29:45]} 42. Rxe6 {[%emt 0:00:06][%mdl 4096] Endgame KRB-KRN} Kf8 {[%emt 0:00:00]} (42... Bg6 $16 43. Rc6 Kh8) 43. Rc6 {[%emt 0:00:00]} ({Only move:} 43. Re5 $18 {Hoping for Ne6+.} Bg8 44. Rxf5+ Ke8 45. Rxb5) 43... Ke8 $14 {[%emt 0:00:00]} 44. Ke2 {[%emt 0:00:00]} Bg8 {[%emt 0:00:00][%cal Oe7e5]} 45. Rc5 {[%emt 0:00:00][%csl LRb5,LRf5]} b4 {[%emt 0:00:00]} (45... a6 $14) 46. Kd3 $16 {[%emt 0:00:00]} Rg6 {[%emt 0:00:00]} 47. Kxd4 {[%emt 0:00:00]} Rd6+ {[%emt 0:00:00]} 48. Ke5 {[%emt 0:00:00]} Kd7 {[%emt 0:00:00] Against Rc8} 49. Ra5 {[%emt 0:00:00]} Kc6 $2 {[%emt 0:00:27]} (49... a6 $16 {keeps fighting.}) 50. Kxf5 $2 {[%emt 0:00:00]} (50. Ra6+ $18 Kc5 51. Rxd6 exd6+ 52. Kxf5) 50... Rd5+ $11 {[%emt 0:02:51] The position is equal.} 51. Rxd5 {[%emt 0:00:00]} Kxd5 {[%emt 0:00:01] KB-KN} 52. Kg6 {[%emt 0:00:00]} Kd4 {[%emt 0:05:12]} 53. Kg7 {[%emt 0:00:00]} Bd5 {[%emt 0:00:07]} 54. Kf8 {[%emt 0:00:00]} Ke3 {[%emt 0:00:24]} 55. Kxe7 {[%emt 0:00:00]} Kxf4 {[%emt 0:00:18]} 56. Kd6 {[%emt 0:00:00]} Bg8 {[%emt 0:00:56]} 57. Ne6+ {[%emt 0:00:00]} Ke3 $1 {[%emt 0:01:33]} 58. Kc5 {[%emt 0:00:00] Strongly threatening Nd4.} Bxe6 {[%emt 0:00:15]} 59. Kxb4 {[%emt 0:00:00]} Kd4 {[%emt 0:00:59]} 60. c4 {[%emt 0:00:00]} a5+ {[%emt 0:01:53]} 61. Kxa5 {[%emt 0:00:00]} Bxc4 {[%emt 0:00:01]} 62. bxc4 {[%emt 0:00:00]} Kxc4 {[%emt 0:00:07]} 63. Kb6 {[%emt 0:00:00] Threatens to win with a4.} Kb4 {[%emt 0:00:03] Never resign too early!  Weighted Error Value: White=0.26 (precise) /Black=0.34} 1/2-1/2

[Event "Czech Championship 2022"]
[Site "Usti nad Labem"]
[Date "2022.05.14"]
[Round "1.21"]
[White "Hrbek, Stepan"]
[Black "Paseka, Matyas"]
[Result "0-1"]
[ECO "E73"]
[WhiteElo "2303"]
[BlackElo "2076"]
[Annotator "TA"]
[PlyCount "83"]
[EventDate "2022.05.12"]
[EventType "swiss"]
[EventCountry "CZE"]
[SourceTitle "playchess.com"]
[Source "ChessBase"]
[SourceQuality "1"]
[TimeControl "40/5400+30:1800+30"]

{[%evp 14,83,79,66,79,79,60,38,63,55,73,45,94,70,93,100,92,87,152,44,35,23,24,0,109,109,109,108,104,104,109,107,114,114,112,88,88,90,89,84,89,88,89,-41,-54,-83,-89,-93,-71,-71,-71,-71,-75,-145,-148,-123,0,-12,0,-124,-127,-433,-433,-572,-505,-542,-524,-718,-645,-713,-549,-1249]} 1. d4 {[%emt 0:00:04]} Nf6 {[%emt 0:00:08]} 2. c4 {[%emt 0:00:08]} g6 {[%emt 0:00:06]} 3. Nc3 {[%emt 0:00:14]} Bg7 {[%emt 0:00:10]} 4. e4 {[%emt 0:00:05]} d6 {[%emt 0:00:07]} 5. Be2 {[%emt 0:00:18]} O-O {[%emt 0:00:18]} 6. Be3 {[%emt 0:00:12]} e5 {[%emt 0:03:22]} 7. d5 {[%emt 0:00:24]} a5 {[%emt 0:00:30]} 8. g4 {[%emt 0:01:19][%cal Bg2g4,Bg4g5][%mdl 32]} Na6 {[%emt 0:02:06] E73: King's Indian: Averbakh Variation without 6...c5.} 9. g5 {[%emt 0:00:25]} Nd7 {[%emt 0:00:43] 9...Nd7 is better than 9...Ne8.} 10. h4 $1 {[%emt 0:01:51][%cal Bh2h4,Bh4h5][%mdl 32]} Ndc5 {[%emt 0:08:30] White is slightly better.} 11. h5 {[%emt 0:01:13]} c6 {[%emt 0:03:59]} 12. Qd2 {[%emt 0:10:17]} a4 {[%emt 0:04:57]} (12... cxd5 $14 {is superior.} 13. cxd5 Bd7) 13. f3 {[%emt 0:19:12]} Qa5 {[%emt 0:13:19]} 14. Nh3 {[%emt 0:01:51]} ({Much weaker is} 14. h6 Bh8 $11) 14... Bd7 {[%emt 0:07:54]} 15. Nf2 {[%emt 0:02:07] [#]} Rfc8 $146 {[%emt 0:06:52]} (15... a3 $142) ({Predecessor:} 15... Rfd8 16. hxg6 hxg6 17. Rc1 Nb4 18. Kf1 cxd5 19. cxd5 Rdc8 20. Kg2 Qd8 21. Kg3 Rc7 {1-0 (30) Hoffman,A (2547)-Hernandez Guerrero,G (2558) Buenos Aires 1999}) 16. Nd3 {[%emt 0:05:27]} (16. Rc1 $16) 16... Nxd3+ $1 $14 {[%emt 0:08:16]} 17. Bxd3 {[%emt 0:02:58]} Nb4 $1 {[%emt 0:00:55] [#] Strongly threatening ...cxd5.} 18. Kf2 {[%emt 0:08:23]} (18. Be2 {is interesting.} cxd5 19. a3 Nc2+ 20. Qxc2 d4 21. O-O-O) 18... cxd5 {[%emt 0:05:31]} (18... Nxd3+ $11 {remains equal.} 19. Qxd3 b5) 19. Nxd5 $16 {[%emt 0:01:18]} Nxd5 {[%emt 0:00:11]} 20. cxd5 {[%emt 0:02:38]} ({Of course not} 20. exd5 $6 Qxd2+ 21. Bxd2 b5 $11) 20... Qxd2+ {[%emt 0:06:50]} 21. Bxd2 {[%emt 0:00:05]} Bf8 {[%emt 0:00:30]} 22. Rh2 {[%emt 0:01:13]} Rc7 {[%emt 0:04:45]} 23. Rah1 {[%emt 0:07:39]} Be8 {[%emt 0:03:19]} 24. hxg6 {[%emt 0:09:07]} fxg6 {[%emt 0:00:10]} 25. Ke2 {[%emt 0:00:41]} Rac8 {[%emt 0:02:03]} 26. Be3 {[%emt 0:02:25]} Rf7 {[%emt 0:01:17]} 27. Rg2 {[%emt 0:02:43]} Be7 {[%emt 0:01:34]} 28. Bb6 {[%emt 0:00:13] [#]} (28. Rc1 $16 Rxc1 29. Bxc1) 28... Bb5 $1 $15 {[%emt 0:03:55] Hoping for ...Rc2+.} 29. Rd1 {[%emt 0:04:36]} (29. Ke3 Bxd3) 29... Rc2+ $1 {[%emt 0:01:12]} 30. Rd2 {[%emt 0:00:03]} Rxd2+ {[%emt 0:00:24]} 31. Kxd2 {[%emt 0:00:04]} Bxd3 {[%emt 0:00:08]} 32. Kxd3 {[%emt 0:00:05]} Rxf3+ $17 {[%emt 0:00:06][%mdl 4096] Endgame KRB-KRB} 33. Be3 {[%emt 0:02:35]} ({White should play} 33. Kc4) 33... Bd8 {[%emt 0:02:19] aiming for ...Bb6.} 34. Ke2 {[%emt 0:00:04]} Rf7 {[%emt 0:00:12]} ({Black should try} 34... Rh3 $17 35. Kf2 Ba5) 35. Kd3 {[%emt 0:02:43]} Rf3 {[%emt 0:05:15]} (35... Kg7 $11) 36. Ke2 {[%emt 0:00:15]} Rh3 {[%emt 0:00:11]} 37. Rg4 $2 {[%emt 0:10:11][%mdl 8192] Loses the game.} (37. b4 $17) 37... Rh2+ $19 {[%emt 0:00:08] Black is clearly winning.} 38. Kf3 {[%emt 0:00:12]} Rxb2 {[%emt 0:00:07]} 39. Rg1 {[%emt 0:00:14]} Rxa2 {[%emt 0:05:11] ...Ra3 is the strong threat.} 40. Rb1 {[%emt 0:00:10]} Ra3 {[%emt 0:00:07] And now ...Bxg5 would win.} 41. Ke2 {[%emt 0:32:56]} Rb3 {[%emt 0:30:05]} 42. Rc1 {[%emt 0:00:04] Weighted Error Value: White=0.49/Black=0.16 (very precise)} 0-1

[Event "Czech Championship 2022"]
[Site "Usti nad Labem"]
[Date "2022.05.14"]
[Round "1.22"]
[White "Ocelak, Jakub"]
[Black "Gnojek, Petr"]
[Result "0-1"]
[ECO "A80"]
[WhiteElo "2060"]
[BlackElo "2302"]
[Annotator "TA"]
[PlyCount "145"]
[EventDate "2022.05.12"]
[EventType "swiss"]
[EventCountry "CZE"]
[SourceTitle "playchess.com"]
[Source "ChessBase"]
[SourceQuality "1"]
[TimeControl "40/5400+30:1800+30"]

{[%evp 9,145,-1,0,-7,0,-29,0,-6,0,0,-3,-29,-27,-35,-8,-11,-17,-18,-10,-12,-4,-14,-18,-77,-51,-64,-75,-53,-60,-66,-44,-39,-43,-50,-26,-23,-33,-73,-12,-13,-10,-5,0,-37,-25,-28,-39,-40,-36,-62,-69,-67,0,-7,-12,0,-13,-25,-16,-53,-39,-45,-20,-21,0,-41,-50,-169,-169,-172,-169,-169,-169,-323,-323,-323,-323,-323,-323,-323,-323,-323,-147,-527,-433,-420,-89,-108,-39,-631,-626,-2630,-2036,-2571,-1827,-5065,-3735,-29971,-29972,-29971,-29973,-29973,-29974,-29974,-29975,-29976,-29976,-29976,-29977,-29982,-29977,-29977,-29978,-29975,-561,-29980,-251,-251,-177,-377,-325,-251,-251,-251,-251,-384,-377,-377,-377,-1169,-1162,-1162,-1161,-1245,-1238,-29987,-29988,-29992]} 1. d4 {[%emt 0:00:14]} f5 {[%emt 0:00:24]} 2. Bg5 {[%emt 0:00:50]} Nf6 {[%emt 0:07:55]} 3. Nc3 {[%emt 0:01:20]} d5 {[%emt 0:01:58]} 4. e3 {[%emt 0:01:58]} e6 {[%emt 0:00:11]} 5. g4 {[%emt 0:08:16]} fxg4 {[%emt 0:14:59]} 6. h3 {[%emt 0:02:06] A80: Dutch Defence: Unusual White second moves.} g3 {[%emt 0:01:38]} 7. fxg3 {[%emt 0:08:13][%cal Oe3e4]} Bd6 {[%emt 0:03:05]} 8. Bf4 {[%emt 0:11:30] [#] The position is equal.} c5 $146 {[%emt 0:02:44]} ({Predecessor:} 8... g5 9. Be5 O-O 10. Nf3 Ne4 11. Bd3 Bxe5 12. Nxe5 Nxg3 13. Rg1 Qf6 14. Ng4 Qf3 15. Qxf3 Rxf3 16. Ne5 Rxe3+ 17. Kd2 {1-0 (17) Valuet,B (2303)-Lehnert,M (2064) Differdange 2007}) 9. Nge2 {[%emt 0:14:00]} Nc6 {[%emt 0:06:48]} 10. Bg2 {[%emt 0:05:53]} O-O {[%emt 0:07:48]} 11. Qd2 {[%emt 0:04:10]} Nh5 {[%emt 0:07:51] aiming for ...cxd4.} 12. Bxd6 {[%emt 0:07:25]} Qxd6 {[%emt 0:00:07]} 13. dxc5 {[%emt 0:00:11]} Qe5 {[%emt 0:10:24]} 14. O-O-O {[%emt 0:06:42]} Rf2 {[%emt 0:03:46]} (14... Nxg3 15. Nxg3 Qxg3 16. Rhf1 $14) 15. Rhg1 {[%emt 0:04:33]} Nxg3 {[%emt 0:00:25][%cal Od5d4]} 16. Rde1 {[%emt 0:02:45]} (16. Bf1 $11 Nh5 17. e4) 16... Bd7 {[%emt 0:02:02]} (16... b6 $5 {[%cal Rc8a6]} 17. Qd3 Nb4 $17) 17. Nd1 {[%emt 0:01:45]} Rxe2 {[%emt 0:01:34]} 18. Rxe2 {[%emt 0:00:04]} Nxe2+ {[%emt 0:00:05]} 19. Qxe2 {[%emt 0:00:10]} Rf8 {[%emt 0:06:00]} 20. Rf1 {[%emt 0:02:03]} Rxf1 {[%emt 0:02:36]} 21. Qxf1 {[%emt 0:00:49]} g5 {[%emt 0:00:06]} 22. Qb5 {[%emt 0:03:10]} Qc7 {[%emt 0:00:05]} 23. Qb3 {[%emt 0:02:04]} Ne5 {[%emt 0:04:07]} (23... Be8 $17 24. e4 Qf4+ 25. Qe3 d4 26. Qxf4 gxf4) 24. Qc3 $11 {[%emt 0:03:33]} Bc6 {[%emt 0:00:33]} 25. Qd4 {[%emt 0:00:50]} Nd7 {[%emt 0:03:07]} 26. Qg4 {[%emt 0:02:01] Against Qg3} Qe5 {[%emt 0:00:06]} (26... Nxc5 27. b4 (27. Qxg5+ Qg7 $11) 27... Ne4 28. Bxe4 (28. Qxe6+ Qf7 $11) 28... dxe4 29. Qxg5+ Qg7 30. Qc5 $14) 27. h4 {[%emt 0:00:05]} h6 {[%emt 0:01:41]} 28. hxg5 {[%emt 0:00:45]} hxg5 {[%emt 0:00:02]} 29. Bh3 {[%emt 0:02:29]} Nxc5 {[%emt 0:00:34]} 30. Qd4 {[%emt 0:00:42]} Qg3 {[%emt 0:03:18]} (30... Nd7 $1 $15 31. Qxa7 Kf7) 31. Qxc5 {[%emt 0:00:49]} Qxh3 {[%emt 0:00:02]} 32. Qxa7 {[%emt 0:00:52][%mdl 4096] Endgame KQB-KQN} Qf3 {[%emt 0:03:32]} 33. Qb8+ {[%emt 0:00:37]} Kf7 {[%emt 0:01:19]} 34. Qc7+ {[%emt 0:01:40]} Kg6 {[%emt 0:00:07]} 35. Qe5 {[%emt 0:00:08]} Qf5 {[%emt 0:01:13] Active counter play!} (35... Qf6 $5 {[%cal Rf6e5]} 36. Qb8 e5 $15) 36. Qg3 {[%emt 0:00:35]} Bb5 {[%emt 0:03:38]} 37. Nf2 {[%emt 0:00:51]} Be2 {[%emt 0:00:02]} 38. Nh3 {[%emt 0:01:27]} (38. Qh2 $15) 38... Qg4 $19 {[%emt 0:01:31]} (38... Qf1+ 39. Kd2 Qd1+ 40. Kc3 $17) 39. Qh2 {[%emt 0:01:11]} Bf1 {[%emt 0:00:17]} ({Stronger than} 39... Qf3 40. Kd2 Bf1 41. Ng1 $17) 40. Ng1 {[%emt 0:00:45]} Qh4 {[%emt 0:00:44]} 41. Qxh4 {[%emt 0:25:58]} (41. Nf3 Qxh2 42. Nxh2) 41... gxh4 {[%emt 0:00:00][%cal Bg5h4,Bh4h3][%mdl 32] KB-KN} 42. Nf3 {[%emt 0:00:05] [#]} h3 {[%emt 0:01:13]} 43. Kd2 {[%emt 0:00:30]} Bg2 {[%emt 0:00:52]} 44. Nh2 {[%emt 0:00:03]} Kf5 {[%emt 0:00:04][%cal Od5d4]} 45. Ke2 {[%emt 0:03:12]} e5 {[%emt 0:01:02]} (45... Ke4 $19 {is more deadly. Threatens to win with ...d4.} 46. c3 e5) 46. Kf2 $2 {[%emt 0:01:22][%mdl 8192] [#]} (46. c3 $17) 46... Ke4 $1 {[%emt 0:01:25]} 47. Ng4 {[%emt 0:00:33]} d4 $2 {[%emt 0:01:00]} (47... Bf3 $19 {has better winning chances.} 48. Nh2 Bd1) 48. exd4 $17 {[%emt 0:01:08]} Kxd4 {[%emt 0:00:05]} (48... exd4 $17 {Hoping for ...Kf4.} 49. Kg3 Bf1) 49. Kg3 {[%emt 0:01:22][%mdl 8192]} (49. c3+ $15 Ke4 50. Kg3) 49... e4 $19 {[%emt 0:01:59] Strongly threatening ...e3.} 50. Kf2 {[%emt 0:00:19] Inhibits e3+.} Bf3 {[%emt 0:00:12]} 51. Nh2 {[%emt 0:01:07]} Bd1 {[%emt 0:00:24]} 52. Kg3 {[%emt 0:00:46]} e3 {[%emt 0:01:43]} ({Not} 52... Bxc2 $2 53. Kxh3 e3 54. Nf3+ Kd3 55. Kg3 $19) 53. Kxh3 {[%emt 0:00:11]} e2 {[%emt 0:00:02]} 54. Nf3+ {[%emt 0:00:07]} Ke3 {[%emt 0:00:02]} 55. Kg3 {[%emt 0:01:10]} Bxc2 {[%emt 0:00:04]} 56. Ne1 {[%emt 0:00:34]} Be4 {[%emt 0:00:06]} 57. a4 {[%emt 0:00:28]} Kd2 {[%emt 0:00:29]} 58. Kf2 {[%emt 0:00:03]} b6 {[%emt 0:00:05]} 59. b3 {[%emt 0:00:55]} Bd5 {[%emt 0:00:08]} 60. b4 {[%emt 0:00:11]} Bc6 {[%emt 0:00:07]} 61. a5 {[%emt 0:00:23]} b5 {[%emt 0:00:39]} ({Weaker is} 61... bxa5 62. bxa5 Bb7 63. Nc2 $11) (61... Bb7 $142 62. axb6 Be4 63. b7 Bxb7 64. Nc2 Bd5 65. Ne1 Be4 66. b5 Bb7 67. Nc2 Bh1 68. Ne1 Bb7 69. Nc2 Be4 70. Ne1 Bb7) 62. a6 {[%emt 0:00:13]} Be4 $2 {[%emt 0:00:55]} (62... Bd5 {mates} 63. a7 Be4 64. Ng2 Bxg2 65. Kxg2 e1=Q 66. a8=Q Qe2+ 67. Kg3 Qc4 68. Qf8 Kc3 69. Qh6 Kxb4 70. Qg6 Ka4 71. Qg7 Kb3 72. Qg6 Kb2 73. Qd6 b4 74. Qd2+ Kb1 75. Qd1+ Qc1 76. Qb3+ Qb2 77. Qe6 b3 78. Qe4+ Qc2 79. Qh1+ Kb2 80. Qd5 Qc7+ 81. Kg2 Qf4 82. Kh1 Kc3 83. Qc5+ Qc4 84. Qe3+ Kb2 85. Qe5+ Kb1 86. Qf5+ Qc2 87. Qg4 b2 88. Kg1 Qd3 89. Qb4 Qd1+ 90. Kf2 Kc1 91. Qa3 Qd4+ 92. Kg3 Kd2 93. Qa2 Qd3+ 94. Kh4 Kc1 95. Qa7 Qe4+ 96. Kg5 b1=Q 97. Qg1+ Kc2 98. Qh2+ Kd3 99. Qd6+ Ke3 100. Qg3+ Kd4 101. Qd6+ Qd5+ 102. Qxd5+ Kxd5 103. Kf6 Qe4 104. Kf7 Qh4 105. Kg6 Ke6 106. Kg7 Qg5+ 107. Kf8 Qg4 108. Ke8 Qg8#) 63. a7 {[%emt 0:00:12]} Kd1 {[%emt 0:02:15]} 64. Ng2 $2 {[%emt 0:00:10]} (64. Ke3 Kxe1 65. Kxe4) 64... Bxg2 {[%emt 0:00:09]} 65. Kxg2 {[%emt 0:00:14]} e1=Q {[%emt 0:00:05]} 66. a8=Q {[%emt 0:00:11] Prevents Qe4+.} Qxb4 {[%emt 0:00:05] KQ-KQ} 67. Kf3 {[%emt 0:01:19]} (67. Qf3+ {was the only defense.} Kc2 68. Qf5+ Kb2 69. Qf2+ Kb3 70. Qa7) 67... Qc4 {[%emt 0:02:28] White must now prevent ...b4.} 68. Ke3 {[%emt 0:01:05]} b4 {[%emt 0:01:17] And now ...Qc3+ would win.} 69. Qd8+ $2 {[%emt 0:01:04]} (69. Qf3+ Kc1 70. Qh1+ Kb2 71. Qh2+ Qc2 72. Qh5) 69... Kc1 {[%emt 0:00:37]} 70. Qd2+ {[%emt 0:00:30]} Kb1 {[%emt 0:00:06] ( -> ...Qc1)} 71. Qh2 {[%emt 0:00:31]} Qc3+ {[%emt 0:00:58]} 72. Ke4 {[%emt 0:00:02]} Qc2+ {[%emt 0:00:04]} 73. Kd4 {[%emt 0:01:31] Weighted Error Value: White=0.70/Black=0.21 (precise)} 0-1

[Event "Czech Championship 2022"]
[Site "Usti nad Labem"]
[Date "2022.05.14"]
[Round "1.23"]
[White "Serrano Salvador, Eduardo"]
[Black "Bokhnak, Timofey"]
[Result "1-0"]
[ECO "D58"]
[WhiteElo "2286"]
[BlackElo "2060"]
[Annotator "TA"]
[PlyCount "81"]
[EventDate "2022.05.12"]
[EventType "swiss"]
[EventCountry "CZE"]
[SourceTitle "playchess.com"]
[Source "ChessBase"]
[SourceQuality "1"]
[TimeControl "40/5400+30:1800+30"]

{[%evp 23,81,26,30,17,32,30,29,22,23,29,23,27,30,8,13,-2,35,44,64,54,89,87,127,113,130,124,127,118,290,222,215,214,195,146,151,148,143,111,342,338,5497,5497,29984,29984,29994,29995,29995,5373,29996,5357,5310,5297,5289,5285,5257,5161,5189,1126,1116,1100]} 1. d4 {[%emt 0:00:03]} d5 {[%emt 0:01:42]} 2. c4 {[%emt 0:00:13]} e6 {[%emt 0:00:08]} 3. Nf3 {[%emt 0:00:43]} Nf6 {[%emt 0:01:20]} 4. Nc3 {[%emt 0:00:51]} Be7 {[%emt 0:00:12]} 5. Bg5 {[%emt 0:00:36]} h6 {[%emt 0:02:24]} 6. Bh4 {[%emt 0:00:29]} O-O {[%emt 0:00:09]} 7. e3 {[%emt 0:00:30]} b6 {[%emt 0:04:26]} 8. Be2 {[%emt 0:00:17]} Nbd7 {[%emt 0:06:03]} 9. Rc1 {[%emt 0:04:20]} Bb7 {[%emt 0:03:32]} 10. cxd5 {[%emt 0:02:46]} exd5 {[%emt 0:02:56]} 11. O-O {[%emt 0:00:15]} Ne4 {[%emt 0:04:19]} 12. Bxe7 {[%emt 0:02:38]} Qxe7 {[%emt 0:00:07]} 13. Qa4 {[%emt 0:05:16] D58: Queen's Gambit Declined: Tartakower Defence.} a6 {[%emt 0:16:35] Against Bb5} 14. b4 {[%emt 0:05:52] [#]} b5 $146 {[%emt 0:09:19]} ({Predecessor:} 14... Rfc8 15. Qb3 Qe6 16. Nxe4 Qxe4 17. Bd3 Qe6 18. a4 Rab8 19. Qb1 g6 20. h4 Kg7 {1-0 (64) Boros,L (1912)-Horvath,K (1973) Hungary 2014}) 15. Qb3 {[%emt 0:03:15] White has an edge.} Nb6 {[%emt 0:00:10]} 16. Nxe4 {[%emt 0:01:14]} dxe4 {[%emt 0:00:27]} 17. Ne5 {[%emt 0:02:01] Threatens to win with Ng6.} Bd5 {[%emt 0:13:56]} 18. Qb1 {[%emt 0:00:30]} Qd6 {[%emt 0:01:52]} 19. f3 {[%emt 0:03:00]} f5 {[%emt 0:02:40]} 20. f4 {[%emt 0:01:37]} Nd7 {[%emt 0:02:42]} 21. Bd1 {[%emt 0:07:11]} Nb6 {[%emt 0:05:29]} 22. Rc5 {[%emt 0:05:47]} c6 {[%emt 0:01:55]} 23. Bb3 {[%emt 0:00:46] Black must now prevent Rxc6.} Rac8 {[%emt 0:00:06]} 24. Rfc1 {[%emt 0:00:32][%cal Bf1c1,Bc1c6,Bc6c7][%mdl 32] Hoping for Rxc6.} Kh7 {[%emt 0:01:10]} 25. Qc2 {[%emt 0:03:44]} h5 $2 {[%emt 0:07:18]} (25... Rc7 $16 {is a better defense.}) 26. Qd1 {[%emt 0:08:04]} ({Don't play} 26. Nxc6 $6 Bxb3 27. Qxb3 (27. axb3 Nd7 $16) 27... Nd7 $18) 26... g6 {[%emt 0:00:44]} 27. Bxd5 {[%emt 0:07:36]} Nxd5 {[%emt 0:02:16]} 28. Rxc6 {[%emt 0:04:33]} (28. Qb3 $18) 28... Rxc6 $16 {[%emt 0:00:24]} 29. Rxc6 {[%emt 0:00:07]} Nxe3 {[%emt 0:00:51] Strongly threatening ...Qxc6.} 30. Qa1 {[%emt 0:10:45]} Qxb4 {[%emt 0:02:11]} (30... Qd8 $16 {might work better.}) 31. Rc7+ $18 {[%emt 0:00:29]} Kh6 $2 {[%emt 0:00:42] [#]} (31... Kg8 32. d5 Rf6) 32. d5 $1 {[%emt 0:00:09][%cal Oe5g4] Threatening mate with Ng4+!} h4 {[%emt 0:02:48]} 33. Nc6 {[%emt 0:05:50]} Qd6 {[%emt 0:02:19]} 34. Qg7+ {[%emt 0:00:24]} Kh5 {[%emt 0:00:01]} 35. Qh7+ {[%emt 0:01:28]} Kg4 {[%emt 0:00:03]} 36. Ne5+ {[%emt 0:00:44]} (36. Qh6 $142 Nxg2 {[#]} 37. Kxg2 $1 h3+ 38. Qxh3+ Kxf4 39. Qg3#) 36... Kxf4 {[%emt 0:00:21] White is clearly winning.} 37. Nxg6+ {[%emt 0:00:06]} Kg5 {[%emt 0:00:06]} 38. Rg7 {[%emt 0:00:41][%csl Gg6][%cal Rh7h4]} Kf6 {[%emt 0:00:32]} 39. Nxf8 {[%emt 0:00:15] White threatens Nd7+ and mate.} Qxf8 {[%emt 0:00:32]} 40. Qh6+ {[%emt 0:00:20]} (40. Rg8 $142 Qxg8 41. Qxg8) 40... Ke5 {[%emt 0:00:06] [#]} 41. Qxe3 $1 {[%emt 0:30:15] Weighted Error Value: White=0.10 (very precise) /Black=0.65} 1-0